[Event "Titled Tuesday Blitz October 12 2021"]
[White "Ozen, Bahadir"]
[Black "Keymer, Vincent"]
[WhiteFideId "6337058"]
[BlackFideId "12940690"]
[WhiteElo "2503"]
[BlackElo "2524"]
[Result "0-1"]
[Round "07"]
[TimeControl "180+1"]
[Date "2021.10.12"]
[WhiteClock "0:00:01"]
[BlackClock "0:00:04"]

1. d4 {[%clk 0:03:00]}  Nf6 {[%clk 0:02:59]} 2. Nf3 {[%clk 0:03:00]}  e6 {[%clk 0:02:59]} 3. c4 {[%clk 0:03:00]}  d5 {[%clk 0:02:59]} 4. Nc3 {[%clk 0:03:00]}  c6 {[%clk 0:02:59]} 5. Bg5 {[%clk 0:03:00]}  h6 {[%clk 0:02:59]} 6. Bxf6 {[%clk 0:03:00]}  Qxf6 {[%clk 0:03:00]} 7. e3 {[%clk 0:03:00]}  g6 {[%clk 0:02:58]} 8. Be2 {[%clk 0:03:00]}  Bg7 {[%clk 0:02:56]} 9. O-O {[%clk 0:03:00]}  O-O {[%clk 0:02:55]} 10. e4 {[%clk 0:03:01]}  dxc4 {[%clk 0:02:55]} 11. e5 {[%clk 0:02:48]}  Qe7 {[%clk 0:02:52]} 12. Bxc4 {[%clk 0:02:48]}  Rd8 {[%clk 0:02:51]} 13. Qe2 {[%clk 0:02:43]}  b5 {[%clk 0:02:45]} 14. Bb3 {[%clk 0:02:41]}  Nd7 {[%clk 0:02:32]} 15. Rfd1 {[%clk 0:02:34]}  Bb7 {[%clk 0:02:29]} 16. Rac1 {[%clk 0:02:10]}  c5 {[%clk 0:01:50]} 17. Nxb5 {[%clk 0:02:00]}  Bxf3 {[%clk 0:01:46]} 18. Qxf3 {[%clk 0:02:01]}  cxd4 {[%clk 0:01:45]} 19. Nxd4 {[%clk 0:01:51]}  Nxe5 {[%clk 0:01:43]} 20. Qe2 {[%clk 0:01:39]}  Qh4 {[%clk 0:01:19]} 21. Nc6 {[%clk 0:01:23]}  Rxd1+ {[%clk 0:01:14]} 22. Bxd1 {[%clk 0:01:19]}  Qg5 {[%clk 0:00:54]} 23. Rc2 {[%clk 0:01:09]}  Nxc6 {[%clk 0:00:52]} 24. Rxc6 {[%clk 0:01:10]}  Qd5 {[%clk 0:00:52]} 25. Qf3 {[%clk 0:00:59]}  Rd8 {[%clk 0:00:28]} 26. Qxd5 {[%clk 0:00:53]}  Rxd5 {[%clk 0:00:29]} 27. Rc8+ {[%clk 0:00:42]}  Kh7 {[%clk 0:00:29]} 28. Bc2 {[%clk 0:00:33]}  Bxb2 {[%clk 0:00:23]} 29. Rc7 {[%clk 0:00:31]}  Kg7 {[%clk 0:00:22]} 30. Kf1 {[%clk 0:00:27]}  Be5 {[%clk 0:00:14]} 31. Rc4 {[%clk 0:00:21]}  h5 {[%clk 0:00:10]} 32. g3 {[%clk 0:00:21]}  Bd4 {[%clk 0:00:09]} 33. Ke2 {[%clk 0:00:21]}  e5 {[%clk 0:00:09]} 34. Bb3 {[%clk 0:00:21]}  Rd7 {[%clk 0:00:09]} 35. Ba4 {[%clk 0:00:21]}  Rd6 {[%clk 0:00:09]} 36. Rc7 {[%clk 0:00:20]}  Rf6 {[%clk 0:00:09]} 37. f3 {[%clk 0:00:19]}  Bg1 {[%clk 0:00:09]} 38. h3 {[%clk 0:00:18]}  Bh2 {[%clk 0:00:09]} 39. g4 {[%clk 0:00:19]}  e4 {[%clk 0:00:09]} 40. Rc3 {[%clk 0:00:19]}  exf3+ {[%clk 0:00:06]} 41. Rxf3 {[%clk 0:00:19]}  Re6+ {[%clk 0:00:07]} 42. Kf2 {[%clk 0:00:19]}  h4 {[%clk 0:00:06]} 43. Bb3 {[%clk 0:00:18]}  Bg3+ {[%clk 0:00:07]} 44. Kg2 {[%clk 0:00:18]}  Re2+ {[%clk 0:00:07]} 45. Kf1 {[%clk 0:00:18]}  Re7 {[%clk 0:00:08]} 46. Kg2 {[%clk 0:00:19]}  f6 {[%clk 0:00:07]} 47. Bc4 {[%clk 0:00:15]}  Re4 {[%clk 0:00:07]} 48. Bd3 {[%clk 0:00:15]}  Ra4 {[%clk 0:00:07]} 49. Bb1 {[%clk 0:00:14]}  Rd4 {[%clk 0:00:07]} 50. Rd3 {[%clk 0:00:13]}  Rc4 {[%clk 0:00:07]} 51. Rd7+ {[%clk 0:00:13]}  Kh6 {[%clk 0:00:07]} 52. Rxa7 {[%clk 0:00:13]}  Rd4 {[%clk 0:00:08]} 53. Rf7 {[%clk 0:00:09]}  Rd2+ {[%clk 0:00:07]} 54. Kf3 {[%clk 0:00:09]}  Rh2 {[%clk 0:00:06]} 55. a4 {[%clk 0:00:07]}  Rxh3 {[%clk 0:00:06]} 56. Ke4 {[%clk 0:00:06]}  Be5 {[%clk 0:00:05]} 57. Bd3 {[%clk 0:00:03]}  Rh1 {[%clk 0:00:04]} 58. g5+ {[%clk 0:00:01]}  Kxg5 {[%clk 0:00:04]} 59. Rg7 {[%clk 0:00:02]}  Ra1 {[%clk 0:00:03]} 60. Kd5 {[%clk 0:00:02]}  Kf4 {[%clk 0:00:02]} 61. Rxg6 {[%clk 0:00:02]}  h3 {[%clk 0:00:02]} 62. Bf5 {[%clk 0:00:02]}  h2 {[%clk 0:00:03]} 63. Rh6 {[%clk 0:00:03]}  Kxf5 {[%clk 0:00:03]} 64. Rh5+ {[%clk 0:00:02]}  Kg6 {[%clk 0:00:03]} 65. Rh3 {[%clk 0:00:03]}  Rxa4 {[%clk 0:00:04]} 66. Rh6+ {[%clk 0:00:01]} 0-1


[Site "https://www.chess.com"]

[Event "Titled Tuesday Blitz October 12 2021"]
[White "Piesik, Piotr"]
[Black "Kozak, Adam"]
[WhiteFideId "1136194"]
[BlackFideId "753246"]
[WhiteElo "2336"]
[BlackElo "2448"]
[Result "0-1"]
[Round "07"]
[TimeControl "180+1"]
[Date "2021.10.12"]
[WhiteClock "0:01:35"]
[BlackClock "0:01:14"]

1. Nf3 {[%clk 0:03:00]}  Nf6 {[%clk 0:02:47]} 2. g3 {[%clk 0:03:00]}  Nc6 {[%clk 0:02:33]} 3. Bg2 {[%clk 0:02:59]}  d5 {[%clk 0:02:34]} 4. O-O {[%clk 0:02:58]}  e5 {[%clk 0:02:34]} 5. d3 {[%clk 0:02:57]}  h5 {[%clk 0:02:24]} 6. Bg5 {[%clk 0:02:56]}  Be7 {[%clk 0:02:23]} 7. Nbd2 {[%clk 0:02:53]}  Be6 {[%clk 0:02:22]} 8. e4 {[%clk 0:02:52]}  Qd7 {[%clk 0:02:20]} 9. c3 {[%clk 0:02:49]}  O-O-O {[%clk 0:02:18]} 10. Qc2 {[%clk 0:02:48]}  Kb8 {[%clk 0:02:12]} 11. b4 {[%clk 0:02:46]}  dxe4 {[%clk 0:02:10]} 12. dxe4 {[%clk 0:02:44]}  Ng8 {[%clk 0:01:35]} 13. Be3 {[%clk 0:02:39]}  g5 {[%clk 0:01:34]} 14. Nxg5 {[%clk 0:02:34]}  h4 {[%clk 0:01:31]} 15. Nxe6 {[%clk 0:02:33]}  Qxe6 {[%clk 0:01:30]} 16. Nf3 {[%clk 0:02:30]}  hxg3 {[%clk 0:01:28]} 17. hxg3 {[%clk 0:02:28]}  Nf6 {[%clk 0:01:25]} 18. Rad1 {[%clk 0:02:24]}  Ng4 {[%clk 0:01:24]} 19. Rxd8+ {[%clk 0:02:20]}  Nxd8 {[%clk 0:01:24]} 20. Qe2 {[%clk 0:02:11]}  Qg6 {[%clk 0:01:21]} 21. Rd1 {[%clk 0:02:03]}  Ne6 {[%clk 0:01:21]} 22. Rd7 {[%clk 0:01:48]}  Bd6 {[%clk 0:01:19]} 23. Bc5 {[%clk 0:01:41]}  Nxc5 {[%clk 0:01:15]} 24. bxc5 {[%clk 0:01:40]}  Bxc5 {[%clk 0:01:16]} 25. Qc4 {[%clk 0:01:35]}  Bxf2+ {[%clk 0:01:14]} 26. Kf1 {[%clk 0:01:35]}  Ne3+ {[%clk 0:01:14]} 0-1


[Site "https://www.chess.com"]

[Event "Titled Tuesday Blitz October 12 2021"]
[White "Rustemov, Alexander"]
[Black "Gurevich, Dmitry"]
[WhiteFideId "4119002"]
[BlackFideId "2000407"]
[WhiteElo "2804"]
[BlackElo "2506"]
[Result "1/2-1/2"]
[Round "07"]
[TimeControl "180+1"]
[Date "2021.10.12"]
[WhiteClock "0:00:08"]
[BlackClock "0:00:08"]

1. d4 {[%clk 0:03:00]}  Nf6 {[%clk 0:02:34]} 2. c4 {[%clk 0:03:00]}  a6 {[%clk 0:02:34]} 3. Nc3 {[%clk 0:02:56]}  c5 {[%clk 0:02:33]} 4. d5 {[%clk 0:02:53]}  b5 {[%clk 0:02:33]} 5. Qc2 {[%clk 0:02:48]}  d6 {[%clk 0:02:27]} 6. e4 {[%clk 0:02:48]}  b4 {[%clk 0:02:24]} 7. Nce2 {[%clk 0:02:44]}  g6 {[%clk 0:02:24]} 8. Ng3 {[%clk 0:02:40]}  h5 {[%clk 0:02:20]} 9. Bd3 {[%clk 0:02:37]}  h4 {[%clk 0:02:19]} 10. N3e2 {[%clk 0:02:35]}  h3 {[%clk 0:02:16]} 11. g3 {[%clk 0:02:29]}  Bg7 {[%clk 0:02:12]} 12. Nf3 {[%clk 0:02:13]}  a5 {[%clk 0:01:58]} 13. O-O {[%clk 0:02:12]}  a4 {[%clk 0:01:58]} 14. Rb1 {[%clk 0:02:10]}  Nbd7 {[%clk 0:01:46]} 15. Bd2 {[%clk 0:02:03]}  Ng4 {[%clk 0:01:44]} 16. Nf4 {[%clk 0:01:57]}  Nde5 {[%clk 0:01:41]} 17. Nxe5 {[%clk 0:01:55]}  Nxe5 {[%clk 0:01:35]} 18. Be2 {[%clk 0:01:55]}  Qb6 {[%clk 0:01:20]} 19. Qc1 {[%clk 0:01:51]}  Bg4 {[%clk 0:01:11]} 20. f3 {[%clk 0:01:51]}  Bd7 {[%clk 0:01:10]} 21. Kh1 {[%clk 0:01:46]}  f5 {[%clk 0:01:09]} 22. exf5 {[%clk 0:01:31]}  Bxf5 {[%clk 0:01:09]} 23. g4 {[%clk 0:01:31]}  Bxb1 {[%clk 0:01:05]} 24. Qxb1 {[%clk 0:01:31]}  a3 {[%clk 0:01:01]} 25. b3 {[%clk 0:01:31]}  g5 {[%clk 0:00:55]} 26. Ng6 {[%clk 0:01:21]}  Rg8 {[%clk 0:00:44]} 27. Bxg5 {[%clk 0:01:19]}  Bf6 {[%clk 0:00:38]} 28. Bxf6 {[%clk 0:01:15]}  exf6 {[%clk 0:00:38]} 29. Nxe5 {[%clk 0:01:02]}  fxe5 {[%clk 0:00:36]} 30. Qh7 {[%clk 0:00:58]}  O-O-O {[%clk 0:00:31]} 31. Qxh3 {[%clk 0:00:57]}  Rh8 {[%clk 0:00:29]} 32. Qg3 {[%clk 0:00:57]}  Qc7 {[%clk 0:00:30]} 33. Bd3 {[%clk 0:00:56]}  Qe7 {[%clk 0:00:29]} 34. Bf5+ {[%clk 0:00:54]}  Kb8 {[%clk 0:00:29]} 35. g5 {[%clk 0:00:50]}  Rdg8 {[%clk 0:00:28]} 36. Rg1 {[%clk 0:00:50]}  Rh5 {[%clk 0:00:26]} 37. h4 {[%clk 0:00:48]}  Rgh8 {[%clk 0:00:25]} 38. Kg2 {[%clk 0:00:47]}  Rxh4 {[%clk 0:00:25]} 39. g6 {[%clk 0:00:38]}  Qg7 {[%clk 0:00:22]} 40. Kf1 {[%clk 0:00:35]}  Rh2 {[%clk 0:00:21]} 41. Rg2 {[%clk 0:00:34]}  Rxg2 {[%clk 0:00:21]} 42. Kxg2 {[%clk 0:00:33]}  Rh5 {[%clk 0:00:20]} 43. Be4 {[%clk 0:00:30]}  Qh6 {[%clk 0:00:13]} 44. g7 {[%clk 0:00:11]}  Qd2+ {[%clk 0:00:13]} 45. Kg1 {[%clk 0:00:10]}  Qd1+ {[%clk 0:00:12]} 46. Kf2 {[%clk 0:00:10]}  Qd2+ {[%clk 0:00:10]} 47. Kg1 {[%clk 0:00:09]}  Qd1+ {[%clk 0:00:09]} 48. Kf2 {[%clk 0:00:08]}  Qd2+ {[%clk 0:00:08]} 49. Kg1 {[%clk 0:00:08]} 1/2-1/2


[Site "https://www.chess.com"]

[Event "Titled Tuesday Blitz October 12 2021"]
[White "Salinas Herrera, Pablo"]
[Black "Indjic, Aleksandar"]
[WhiteFideId "3407128"]
[BlackFideId "911925"]
[WhiteElo "2541"]
[BlackElo "2643"]
[Result "0-1"]
[Round "07"]
[TimeControl "180+1"]
[Date "2021.10.12"]
[WhiteClock "0:00:09"]
[BlackClock "0:00:39"]

1. e4 {[%clk 0:03:00]}  c5 {[%clk 0:02:59]} 2. Nf3 {[%clk 0:03:00]}  Nc6 {[%clk 0:03:00]} 3. Bb5 {[%clk 0:02:59]}  g6 {[%clk 0:03:00]} 4. Bxc6 {[%clk 0:02:57]}  dxc6 {[%clk 0:02:58]} 5. d3 {[%clk 0:02:56]}  Bg7 {[%clk 0:02:58]} 6. h3 {[%clk 0:02:56]}  e5 {[%clk 0:02:56]} 7. Nc3 {[%clk 0:02:55]}  Qe7 {[%clk 0:02:53]} 8. O-O {[%clk 0:02:55]}  Nf6 {[%clk 0:02:52]} 9. Nh2 {[%clk 0:02:55]}  Nh5 {[%clk 0:02:45]} 10. Ne2 {[%clk 0:02:55]}  Be6 {[%clk 0:02:37]} 11. b3 {[%clk 0:02:50]}  O-O-O {[%clk 0:02:35]} 12. Qe1 {[%clk 0:02:49]}  Qc7 {[%clk 0:02:25]} 13. Bd2 {[%clk 0:02:32]}  Nf4 {[%clk 0:02:18]} 14. Nxf4 {[%clk 0:02:32]}  exf4 {[%clk 0:02:18]} 15. Bc3 {[%clk 0:02:33]}  f6 {[%clk 0:02:14]} 16. a4 {[%clk 0:02:20]}  g5 {[%clk 0:02:12]} 17. Ba5 {[%clk 0:01:55]}  b6 {[%clk 0:02:09]} 18. Bc3 {[%clk 0:01:56]}  h5 {[%clk 0:02:08]} 19. a5 {[%clk 0:01:55]}  Kb7 {[%clk 0:02:07]} 20. axb6 {[%clk 0:01:46]}  axb6 {[%clk 0:02:07]} 21. Ra4 {[%clk 0:01:42]}  Ra8 {[%clk 0:02:05]} 22. Rxa8 {[%clk 0:01:37]}  Rxa8 {[%clk 0:02:04]} 23. Qe2 {[%clk 0:01:32]}  Bf7 {[%clk 0:01:59]} 24. Ra1 {[%clk 0:01:30]}  Rxa1+ {[%clk 0:01:56]} 25. Bxa1 {[%clk 0:01:31]}  Qb8 {[%clk 0:01:55]} 26. Nf3 {[%clk 0:01:28]}  Bh8 {[%clk 0:01:48]} 27. e5 {[%clk 0:01:18]}  Qe8 {[%clk 0:01:45]} 28. Kf1 {[%clk 0:00:32]}  g4 {[%clk 0:01:43]} 29. Ng1 {[%clk 0:00:29]}  f5 {[%clk 0:01:36]} 30. Bc3 {[%clk 0:00:16]}  Bg7 {[%clk 0:01:32]} 31. f3 {[%clk 0:00:16]}  Be6 {[%clk 0:01:19]} 32. Qd2 {[%clk 0:00:16]}  Bh6 {[%clk 0:01:16]} 33. Qc1 {[%clk 0:00:15]}  Bd5 {[%clk 0:01:14]} 34. Qe1 {[%clk 0:00:15]}  Qe7 {[%clk 0:01:10]} 35. Qa1 {[%clk 0:00:13]}  Bg5 {[%clk 0:00:54]} 36. Qe1 {[%clk 0:00:13]}  Bh4 {[%clk 0:00:54]} 37. Qd2 {[%clk 0:00:13]}  Bg3 {[%clk 0:00:54]} 38. Bb2 {[%clk 0:00:11]}  Bh2 {[%clk 0:00:54]} 39. c4 {[%clk 0:00:11]}  Be6 {[%clk 0:00:52]} 40. Ne2 {[%clk 0:00:11]}  gxf3 {[%clk 0:00:40]} 41. Nxf4 {[%clk 0:00:11]}  Qg5 {[%clk 0:00:39]} 42. Bc1 {[%clk 0:00:09]}  Bxf4 {[%clk 0:00:39]} 0-1


[Site "https://www.chess.com"]

[Event "Titled Tuesday Blitz October 12 2021"]
[White "Samsonkin, Artiom"]
[Black "Hansen, Eric"]
[WhiteFideId "13503111"]
[BlackFideId "2606771"]
[WhiteElo "2513"]
[BlackElo "2568"]
[Result "0-1"]
[Round "07"]
[TimeControl "180+1"]
[Date "2021.10.12"]
[WhiteClock "0:00:01"]
[BlackClock "0:00:10"]

1. e4 {[%clk 0:03:00]}  e5 {[%clk 0:02:52]} 2. Nf3 {[%clk 0:03:00]}  Nc6 {[%clk 0:02:19]} 3. d4 {[%clk 0:03:00]}  exd4 {[%clk 0:02:19]} 4. Bc4 {[%clk 0:03:00]}  Nf6 {[%clk 0:02:07]} 5. e5 {[%clk 0:03:00]}  d5 {[%clk 0:02:08]} 6. Bb5 {[%clk 0:03:00]}  Ne4 {[%clk 0:02:08]} 7. Nxd4 {[%clk 0:03:01]}  Bd7 {[%clk 0:02:05]} 8. Bxc6 {[%clk 0:03:01]}  bxc6 {[%clk 0:02:06]} 9. O-O {[%clk 0:03:00]}  c5 {[%clk 0:02:01]} 10. Ne2 {[%clk 0:02:52]}  d4 {[%clk 0:01:56]} 11. f3 {[%clk 0:02:44]}  Ng5 {[%clk 0:01:55]} 12. f4 {[%clk 0:02:44]}  Ne4 {[%clk 0:01:53]} 13. Nd2 {[%clk 0:02:22]}  Nxd2 {[%clk 0:01:47]} 14. Bxd2 {[%clk 0:02:23]}  Bc6 {[%clk 0:01:48]} 15. f5 {[%clk 0:02:21]}  Qd7 {[%clk 0:01:34]} 16. e6 {[%clk 0:02:07]}  fxe6 {[%clk 0:01:33]} 17. fxe6 {[%clk 0:02:08]}  Qxe6 {[%clk 0:01:34]} 18. Nxd4 {[%clk 0:01:30]}  cxd4 {[%clk 0:01:24]} 19. Re1 {[%clk 0:01:31]}  Be4 {[%clk 0:01:25]} 20. Qe2 {[%clk 0:01:26]}  O-O-O {[%clk 0:01:13]} 21. Qxe4 {[%clk 0:01:26]}  Qxe4 {[%clk 0:01:13]} 22. Rxe4 {[%clk 0:01:26]}  Bc5 {[%clk 0:01:08]} 23. Kh1 {[%clk 0:00:42]}  Rhf8 {[%clk 0:01:04]} 24. b4 {[%clk 0:00:38]}  Bb6 {[%clk 0:01:00]} 25. a4 {[%clk 0:00:34]}  d3 {[%clk 0:00:51]} 26. cxd3 {[%clk 0:00:28]}  Rxd3 {[%clk 0:00:51]} 27. Bg5 {[%clk 0:00:11]}  Rf5 {[%clk 0:00:29]} 28. Bh4 {[%clk 0:00:07]}  g5 {[%clk 0:00:29]} 29. Bg3 {[%clk 0:00:07]}  h5 {[%clk 0:00:30]} 30. a5 {[%clk 0:00:06]}  Bd4 {[%clk 0:00:30]} 31. Rc1 {[%clk 0:00:04]}  h4 {[%clk 0:00:22]} 32. Bxc7 {[%clk 0:00:02]}  Rc3 {[%clk 0:00:22]} 33. Rd1 {[%clk 0:00:01]}  Rd3 {[%clk 0:00:13]} 34. Rc1 {[%clk 0:00:01]}  Bb2 {[%clk 0:00:11]} 35. Rb1 {[%clk 0:00:01]}  Kxc7 {[%clk 0:00:11]} 36. Rc4+ {[%clk 0:00:02]}  Kd7 {[%clk 0:00:11]} 37. g4 {[%clk 0:00:02]}  Rf2 {[%clk 0:00:10]} 38. Rc5 {[%clk 0:00:01]}  Rdd2 {[%clk 0:00:10]} 0-1


[Site "https://www.chess.com"]

[Event "Titled Tuesday Blitz October 12 2021"]
[White "Siva Mahadevan"]
[Black "Timmermans, Mark"]
[WhiteFideId "25043153"]
[BlackFideId "1026399"]
[WhiteElo "2203"]
[BlackElo "2460"]
[Result "0-1"]
[Round "07"]
[TimeControl "180+1"]
[Date "2021.10.12"]
[WhiteClock "0:00:02"]
[BlackClock "0:00:10"]

1. e4 {[%clk 0:02:59]}  e5 {[%clk 0:03:00]} 2. Nf3 {[%clk 0:02:59]}  Nc6 {[%clk 0:03:00]} 3. Bb5 {[%clk 0:03:00]}  f5 {[%clk 0:03:00]} 4. d4 {[%clk 0:02:56]}  fxe4 {[%clk 0:03:00]} 5. Nxe5 {[%clk 0:02:56]}  Nxe5 {[%clk 0:03:01]} 6. dxe5 {[%clk 0:02:57]}  c6 {[%clk 0:03:02]} 7. Nc3 {[%clk 0:02:56]}  cxb5 {[%clk 0:03:03]} 8. Nxe4 {[%clk 0:02:55]}  d5 {[%clk 0:03:04]} 9. exd6 {[%clk 0:02:55]}  Nf6 {[%clk 0:03:04]} 10. O-O {[%clk 0:02:55]}  Nxe4 {[%clk 0:03:00]} 11. Qh5+ {[%clk 0:02:54]}  g6 {[%clk 0:03:00]} 12. Qe5+ {[%clk 0:02:54]}  Kf7 {[%clk 0:02:59]} 13. Qxh8 {[%clk 0:02:54]}  Nf6 {[%clk 0:02:56]} 14. Bh6 {[%clk 0:02:47]}  Be6 {[%clk 0:02:37]} 15. Bxf8 {[%clk 0:02:42]}  Qxf8 {[%clk 0:02:38]} 16. Qxf8+ {[%clk 0:02:42]}  Rxf8 {[%clk 0:02:37]} 17. a4 {[%clk 0:02:23]}  b4 {[%clk 0:02:30]} 18. Rad1 {[%clk 0:02:01]}  Ke8 {[%clk 0:02:24]} 19. a5 {[%clk 0:01:54]}  Kd7 {[%clk 0:02:03]} 20. Rd4 {[%clk 0:01:53]}  Nd5 {[%clk 0:02:03]} 21. Rfd1 {[%clk 0:01:40]}  Re8 {[%clk 0:02:03]} 22. Kf1 {[%clk 0:01:38]}  Kc6 {[%clk 0:02:01]} 23. Rc4+ {[%clk 0:01:27]}  Kd7 {[%clk 0:01:55]} 24. Rcd4 {[%clk 0:01:15]}  Kc6 {[%clk 0:01:55]} 25. Rc4+ {[%clk 0:01:16]}  Kxd6 {[%clk 0:01:55]} 26. Rxb4 {[%clk 0:01:16]}  Kc6 {[%clk 0:01:53]} 27. Rc4+ {[%clk 0:01:15]}  Kb5 {[%clk 0:01:50]} 28. Rh4 {[%clk 0:01:14]}  Nf6 {[%clk 0:01:46]} 29. b3 {[%clk 0:01:08]}  Bf5 {[%clk 0:01:37]} 30. Rc4 {[%clk 0:01:05]}  Kxa5 {[%clk 0:01:35]} 31. f3 {[%clk 0:01:05]}  h5 {[%clk 0:01:31]} 32. Kf2 {[%clk 0:01:03]}  Kb5 {[%clk 0:01:29]} 33. Rc7 {[%clk 0:01:01]}  Kb6 {[%clk 0:01:28]} 34. Rc4 {[%clk 0:01:01]}  Re6 {[%clk 0:01:20]} 35. h3 {[%clk 0:01:01]}  Ne8 {[%clk 0:01:16]} 36. g4 {[%clk 0:00:59]}  hxg4 {[%clk 0:00:52]} 37. hxg4 {[%clk 0:01:00]}  Nd6 {[%clk 0:00:45]} 38. gxf5 {[%clk 0:01:00]}  gxf5 {[%clk 0:00:45]} 39. Rcd4 {[%clk 0:00:56]}  Nb5 {[%clk 0:00:44]} 40. Rd5 {[%clk 0:00:54]}  f4 {[%clk 0:00:42]} 41. R1d3 {[%clk 0:00:54]}  a5 {[%clk 0:00:38]} 42. Rf5 {[%clk 0:00:50]}  Rh6 {[%clk 0:00:34]} 43. c4 {[%clk 0:00:47]}  Nc7 {[%clk 0:00:35]} 44. Rxf4 {[%clk 0:00:46]}  Na6 {[%clk 0:00:34]} 45. Rd5 {[%clk 0:00:43]}  Nc5 {[%clk 0:00:33]} 46. Rff5 {[%clk 0:00:44]}  Ne6 {[%clk 0:00:22]} 47. Rd6+ {[%clk 0:00:40]}  Kc7 {[%clk 0:00:22]} 48. Rfd5 {[%clk 0:00:22]}  Rh2+ {[%clk 0:00:17]} 49. Kg3 {[%clk 0:00:22]}  Re2 {[%clk 0:00:17]} 50. Rd2 {[%clk 0:00:21]}  Re3 {[%clk 0:00:17]} 51. R6d3 {[%clk 0:00:21]}  Re1 {[%clk 0:00:15]} 52. Kf2 {[%clk 0:00:20]}  Rb1 {[%clk 0:00:15]} 53. Re3 {[%clk 0:00:18]}  Nc5 {[%clk 0:00:14]} 54. f4 {[%clk 0:00:18]}  Nxb3 {[%clk 0:00:13]} 55. Rd5 {[%clk 0:00:18]}  a4 {[%clk 0:00:13]} 56. f5 {[%clk 0:00:17]}  a3 {[%clk 0:00:13]} 57. Re7+ {[%clk 0:00:10]}  Kb8 {[%clk 0:00:10]} 58. f6 {[%clk 0:00:07]}  a2 {[%clk 0:00:09]} 59. f7 {[%clk 0:00:07]}  Rf1+ {[%clk 0:00:09]} 60. Kxf1 {[%clk 0:00:06]}  a1=Q+ {[%clk 0:00:10]} 61. Kg2 {[%clk 0:00:06]}  Qg7+ {[%clk 0:00:10]} 62. Kf3 {[%clk 0:00:06]}  Qf6+ {[%clk 0:00:10]} 63. Ke4 {[%clk 0:00:02]}  Qxe7+ {[%clk 0:00:10]} 0-1


[Site "https://www.chess.com"]

[Event "Titled Tuesday Blitz October 12 2021"]
[White "Stoyanov, Tsvetan"]
[Black "Yoo, Christopher Woojin"]
[WhiteFideId "2917173"]
[BlackFideId "30909694"]
[WhiteElo "2191"]
[BlackElo "2105"]
[Result "0-1"]
[Round "07"]
[TimeControl "180+1"]
[Date "2021.10.12"]
[WhiteClock "0:00:10"]
[BlackClock "0:00:09"]

1. b3 {[%clk 0:03:00]}  Nf6 {[%clk 0:02:58]} 2. Bb2 {[%clk 0:03:01]}  g6 {[%clk 0:02:59]} 3. Nf3 {[%clk 0:03:01]}  Bg7 {[%clk 0:02:58]} 4. g3 {[%clk 0:03:01]}  O-O {[%clk 0:02:59]} 5. Bg2 {[%clk 0:03:02]}  b6 {[%clk 0:02:59]} 6. O-O {[%clk 0:03:02]}  Bb7 {[%clk 0:02:59]} 7. c4 {[%clk 0:03:03]}  e6 {[%clk 0:02:59]} 8. Nc3 {[%clk 0:03:02]}  d5 {[%clk 0:02:59]} 9. d4 {[%clk 0:03:02]}  Qe7 {[%clk 0:02:59]} 10. Rc1 {[%clk 0:03:02]}  Rd8 {[%clk 0:02:59]} 11. Qc2 {[%clk 0:03:01]}  dxc4 {[%clk 0:02:43]} 12. bxc4 {[%clk 0:03:02]}  c5 {[%clk 0:02:42]} 13. dxc5 {[%clk 0:02:50]}  Qxc5 {[%clk 0:02:43]} 14. Na4 {[%clk 0:02:48]}  Qe7 {[%clk 0:02:38]} 15. Rfd1 {[%clk 0:02:41]}  Na6 {[%clk 0:02:32]} 16. Qb3 {[%clk 0:02:38]}  Rac8 {[%clk 0:02:01]} 17. Rxd8+ {[%clk 0:02:31]}  Rxd8 {[%clk 0:02:01]} 18. Ba3 {[%clk 0:02:29]}  Qe8 {[%clk 0:01:57]} 19. Nc3 {[%clk 0:02:25]}  Ne4 {[%clk 0:01:54]} 20. Nxe4 {[%clk 0:02:17]}  Bxe4 {[%clk 0:01:54]} 21. Qb5 {[%clk 0:02:08]}  Bh6 {[%clk 0:01:21]} 22. Qxe8+ {[%clk 0:01:54]}  Rxe8 {[%clk 0:01:20]} 23. Rd1 {[%clk 0:01:55]}  Bf8 {[%clk 0:01:10]} 24. Bxf8 {[%clk 0:01:52]}  Kxf8 {[%clk 0:01:11]} 25. Ne5 {[%clk 0:01:45]}  Bxg2 {[%clk 0:01:05]} 26. Kxg2 {[%clk 0:01:46]}  Nc5 {[%clk 0:01:02]} 27. Nc6 {[%clk 0:01:34]}  Ra8 {[%clk 0:00:46]} 28. Kf3 {[%clk 0:01:28]}  Ke8 {[%clk 0:00:44]} 29. Kf4 {[%clk 0:01:24]}  a6 {[%clk 0:00:42]} 30. f3 {[%clk 0:00:58]}  Rc8 {[%clk 0:00:41]} 31. Nb4 {[%clk 0:00:57]}  a5 {[%clk 0:00:35]} 32. Nd3 {[%clk 0:00:55]}  Nd7 {[%clk 0:00:33]} 33. Rc1 {[%clk 0:00:53]}  f6 {[%clk 0:00:32]} 34. e4 {[%clk 0:00:41]}  e5+ {[%clk 0:00:28]} 35. Ke3 {[%clk 0:00:41]}  Ke7 {[%clk 0:00:29]} 36. a4 {[%clk 0:00:37]}  Kd6 {[%clk 0:00:27]} 37. Rd1 {[%clk 0:00:34]}  Ke6 {[%clk 0:00:26]} 38. Rc1 {[%clk 0:00:32]}  f5 {[%clk 0:00:24]} 39. f4 {[%clk 0:00:28]}  fxe4 {[%clk 0:00:22]} 40. Kxe4 {[%clk 0:00:27]}  exf4 {[%clk 0:00:20]} 41. Nxf4+ {[%clk 0:00:27]}  Kd6 {[%clk 0:00:20]} 42. Rd1+ {[%clk 0:00:27]}  Kc6 {[%clk 0:00:19]} 43. Nd5 {[%clk 0:00:23]}  Nc5+ {[%clk 0:00:18]} 44. Kf4 {[%clk 0:00:22]}  Re8 {[%clk 0:00:16]} 45. Kg5 {[%clk 0:00:15]}  Nxa4 {[%clk 0:00:13]} 46. Kh6 {[%clk 0:00:13]}  Re2 {[%clk 0:00:10]} 47. h4 {[%clk 0:00:13]}  Nb2 {[%clk 0:00:10]} 48. Kxh7 {[%clk 0:00:10]}  Nxd1 {[%clk 0:00:09]} 0-1


[Site "https://www.chess.com"]